[Event "Early-Titled-Tuesday-Blitz-October-10-2023"]
[Site "Chess.com"]
[Date "2023.10.10"]
[Round "8"]
[White "Dannyyi"]
[Black "Kielinkei"]
[Result "0-1"]
[WhiteElo "2183"]
[BlackElo "2453"]
[TimeControl "180+1"]
[EndTime "9:27:17 PDT"]
[Termination "Kielinkei won by resignation"]

1. e4 {[%clk 0:03:00.9]} 1... c5 {[%clk 0:02:58.6]} 2. Nf3 {[%clk 0:03:00.7]}
2... e6 {[%clk 0:02:59.1]} 3. d4 {[%clk 0:03:00.6]} 3... cxd4 {[%clk 0:03:00]}
4. Nxd4 {[%clk 0:03:01.1]} 4... Nc6 {[%clk 0:03:00.7]} 5. Nc3 {[%clk 0:02:59.9]}
5... Qc7 {[%clk 0:03:01.3]} 6. Be3 {[%clk 0:02:59]} 6... a6 {[%clk 0:03:01.8]}
7. Qf3 {[%clk 0:02:58.6]} 7... Bd6 {[%clk 0:03:01.1]} 8. O-O-O {[%clk
0:02:48.7]} 8... Be5 {[%clk 0:03:01.2]} 9. Nxc6 {[%clk 0:02:44.7]} 9... bxc6
{[%clk 0:03:01.6]} 10. Bd4 {[%clk 0:02:42.9]} 10... Ne7 {[%clk 0:02:59]} 11.
Bxe5 {[%clk 0:02:33.1]} 11... Qxe5 {[%clk 0:02:59.9]} 12. Bd3 {[%clk 0:02:32.8]}
12... O-O {[%clk 0:02:58.5]} 13. h4 {[%clk 0:02:30.1]} 13... f5 {[%clk
0:02:52.9]} 14. exf5 {[%clk 0:02:26.7]} 14... Nxf5 {[%clk 0:02:52.9]} 15. Qh3
{[%clk 0:02:16.2]} 15... Rb8 {[%clk 0:02:33]} 16. g4 {[%clk 0:02:11.8]} 16...
Qf4+ {[%clk 0:02:21.7]} 17. Kb1 {[%clk 0:02:09.1]} 17... Qb4 {[%clk 0:02:21.3]}
18. b3 {[%clk 0:02:06.4]} 18... Nd4 {[%clk 0:02:03.3]} 19. Qe3 {[%clk
0:01:52.2]} 19... Rf3 {[%clk 0:01:33.2]} 20. Qd2 {[%clk 0:01:51.5]} 20... c5
{[%clk 0:01:13.5]} 21. Rhg1 {[%clk 0:01:39.4]} 21... c4 {[%clk 0:01:06.5]} 22.
Be4 {[%clk 0:01:36.7]} 22... cxb3 {[%clk 0:00:56.8]} 23. axb3 {[%clk 0:01:19.5]}
23... Nxb3 {[%clk 0:00:54.2]} 24. cxb3 {[%clk 0:00:39.2]} 24... Qxb3+ {[%clk
0:00:53.6]} 25. Ka1 {[%clk 0:00:39.7]} 25... Rxc3 {[%clk 0:00:52.4]} 26. Rb1
{[%clk 0:00:32.8]} 26... Qa4+ {[%clk 0:00:47.4]} 27. Qa2 {[%clk 0:00:32.5]}
27... Ra3 {[%clk 0:00:43.1]} 28. Rxb8 {[%clk 0:00:23.8]} 28... Rxa2+ {[%clk
0:00:43.2]} 29. Kb1 {[%clk 0:00:24.4]} 29... Ra1+ {[%clk 0:00:41.6]} 30. Kb2
{[%clk 0:00:24.5]} 30... Qd4+ {[%clk 0:00:31.6]} 31. Kb3 {[%clk 0:00:20.5]}
31... Rxg1 {[%clk 0:00:25.5]} 32. Rxc8+ {[%clk 0:00:20.1]} 32... Kf7 {[%clk
0:00:26.1]} 33. Bc2 {[%clk 0:00:18.3]} 33... Qb6+ {[%clk 0:00:22.8]} 34. Kc3
{[%clk 0:00:18.1]} 34... Qxf2 {[%clk 0:00:21.3]} 35. g5 {[%clk 0:00:13.2]} 35...
Rg3+ {[%clk 0:00:21.6]} 36. Bd3 {[%clk 0:00:12]} 36... Qe1+ {[%clk 0:00:16.5]}
37. Kd4 {[%clk 0:00:10.1]} 37... Qb4+ {[%clk 0:00:15.7]} 38. Ke5 {[%clk
0:00:07.9]} 38... Re3+ {[%clk 0:00:13.3]} 0-1

[Event "Early-Titled-Tuesday-Blitz-October-10-2023"]
[Site "Chess.com"]
[Date "2023.10.10"]
[Round "8"]
[White "Likvidator228"]
[Black "ViktoriyaTarasova"]
[Result "0-1"]
[WhiteElo "2565"]
[BlackElo "2401"]
[TimeControl "180+1"]
[EndTime "9:27:19 PDT"]
[Termination "ViktoriyaTarasova won by checkmate"]

1. d4 {[%clk 0:02:56.3]} 1... Nf6 {[%clk 0:02:59.7]} 2. Nf3 {[%clk 0:02:55.6]}
2... e6 {[%clk 0:02:59.4]} 3. Bf4 {[%clk 0:02:55]} 3... d5 {[%clk 0:02:58.9]} 4.
e3 {[%clk 0:02:55]} 4... c5 {[%clk 0:02:59.1]} 5. c3 {[%clk 0:02:55.4]} 5... Bd6
{[%clk 0:02:58.9]} 6. Bg3 {[%clk 0:02:54.2]} 6... Qc7 {[%clk 0:02:56.6]} 7. Bb5+
{[%clk 0:02:53.8]} 7... Bd7 {[%clk 0:02:53.2]} 8. Bxd6 {[%clk 0:02:39]} 8...
Qxd6 {[%clk 0:02:52.6]} 9. Bd3 {[%clk 0:02:34.2]} 9... O-O {[%clk 0:02:48.3]}
10. Ne5 {[%clk 0:02:33.4]} 10... Nc6 {[%clk 0:02:42.3]} 11. f4 {[%clk
0:02:33.3]} 11... cxd4 {[%clk 0:02:36.7]} 12. exd4 {[%clk 0:02:33.1]} 12... Ne4
{[%clk 0:02:34.3]} 13. O-O {[%clk 0:02:31]} 13... f6 {[%clk 0:02:19.9]} 14. Bxe4
{[%clk 0:02:21.8]} 14... dxe4 {[%clk 0:02:19.4]} 15. Nc4 {[%clk 0:02:21.5]}
15... Qe7 {[%clk 0:02:05.6]} 16. Ne3 {[%clk 0:02:21.6]} 16... Rad8 {[%clk
0:01:56.9]} 17. Qc2 {[%clk 0:02:20]} 17... f5 {[%clk 0:01:55.7]} 18. Nd2 {[%clk
0:02:19.4]} 18... Qf7 {[%clk 0:01:50.6]} 19. Ndc4 {[%clk 0:02:17.4]} 19... Bc8
{[%clk 0:01:44.9]} 20. a4 {[%clk 0:02:13.8]} 20... b6 {[%clk 0:01:44.8]} 21.
Rfd1 {[%clk 0:02:01.2]} 21... Ba6 {[%clk 0:01:43.4]} 22. Ne5 {[%clk 0:01:42.7]}
22... Nxe5 {[%clk 0:01:37.2]} 23. dxe5 {[%clk 0:01:43.6]} 23... Bd3 {[%clk
0:01:37]} 24. Qb3 {[%clk 0:01:43.4]} 24... Rfe8 {[%clk 0:01:27.8]} 25. a5 {[%clk
0:01:42.7]} 25... Qc7 {[%clk 0:01:25.5]} 26. axb6 {[%clk 0:01:37.2]} 26... Qc5
{[%clk 0:01:14.4]} 27. Kf2 {[%clk 0:01:29.5]} 27... axb6 {[%clk 0:01:13.8]} 28.
Qa3 {[%clk 0:01:23.6]} 28... Qc6 {[%clk 0:01:03.4]} 29. Qb4 {[%clk 0:01:14.1]}
29... h6 {[%clk 0:00:48.2]} 30. Ra7 {[%clk 0:01:06.4]} 30... Rd7 {[%clk
0:00:36.9]} 31. Rxd7 {[%clk 0:01:04.3]} 31... Qxd7 {[%clk 0:00:35.7]} 32. Qxb6
{[%clk 0:01:04]} 32... g5 {[%clk 0:00:29.6]} 33. g3 {[%clk 0:01:04.3]} 33...
gxf4 {[%clk 0:00:18.5]} 34. gxf4 {[%clk 0:01:04.4]} 34... Qe7 {[%clk 0:00:19.2]}
35. Rg1+ {[%clk 0:01:04.1]} 35... Kh8 {[%clk 0:00:19.4]} 36. Nxf5 {[%clk
0:00:37.1]} 36... Qf7 {[%clk 0:00:04.9]} 37. Qc6 {[%clk 0:00:29.3]} 37... Rf8
{[%clk 0:00:04.4]} 38. Ke3 {[%clk 0:00:15.9]} 38... Qxf5 {[%clk 0:00:04.6]} 39.
Kd4 {[%clk 0:00:14.6]} 39... Qxf4 {[%clk 0:00:04.7]} 40. Qd6 {[%clk 0:00:13.9]}
40... Qf2# {[%clk 0:00:04.9]} 0-1

[Event "Early-Titled-Tuesday-Blitz-October-10-2023"]
[Site "Chess.com"]
[Date "2023.10.10"]
[Round "8"]
[White "Mystery2007"]
[Black "deribas12345"]
[Result "0-1"]
[WhiteElo "2475"]
[BlackElo "2586"]
[TimeControl "180+1"]
[EndTime "9:27:21 PDT"]
[Termination "deribas12345 won on time"]

1. e4 {[%clk 0:03:00.9]} 1... c5 {[%clk 0:02:57]} 2. Nf3 {[%clk 0:03:00.6]} 2...
d6 {[%clk 0:02:57.5]} 3. d4 {[%clk 0:02:56.8]} 3... cxd4 {[%clk 0:02:58.4]} 4.
Nxd4 {[%clk 0:02:57.2]} 4... Nf6 {[%clk 0:02:56.3]} 5. Nc3 {[%clk 0:02:57.4]}
5... a6 {[%clk 0:02:52.8]} 6. Bg5 {[%clk 0:02:57]} 6... e6 {[%clk 0:02:49.3]} 7.
f4 {[%clk 0:02:56.7]} 7... Be7 {[%clk 0:02:45]} 8. Qf3 {[%clk 0:02:56.1]} 8...
h6 {[%clk 0:02:44.5]} 9. Bh4 {[%clk 0:02:54.7]} 9... Nbd7 {[%clk 0:02:41.6]} 10.
O-O-O {[%clk 0:02:53.7]} 10... Qc7 {[%clk 0:02:40.6]} 11. Bd3 {[%clk 0:02:50.2]}
11... g5 {[%clk 0:02:33.3]} 12. fxg5 {[%clk 0:02:45.8]} 12... Ne5 {[%clk
0:02:30.3]} 13. Qe2 {[%clk 0:02:46.2]} 13... Nh7 {[%clk 0:02:29.5]} 14. Kb1
{[%clk 0:02:41.5]} 14... hxg5 {[%clk 0:02:15.5]} 15. Bg3 {[%clk 0:02:39.8]}
15... Bd7 {[%clk 0:02:15.7]} 16. Nf3 {[%clk 0:02:32.3]} 16... O-O-O {[%clk
0:01:56.6]} 17. Rhf1 {[%clk 0:01:59.9]} 17... f6 {[%clk 0:01:40.7]} 18. Bf2
{[%clk 0:01:41]} 18... Nf8 {[%clk 0:01:24.8]} 19. Nxe5 {[%clk 0:01:18.7]} 19...
dxe5 {[%clk 0:01:22.3]} 20. Bg1 {[%clk 0:01:08.3]} 20... Ng6 {[%clk 0:01:14.8]}
21. g3 {[%clk 0:01:06.9]} 21... Bb4 {[%clk 0:01:13.1]} 22. Rxf6 {[%clk
0:00:59.2]} 22... Ne7 {[%clk 0:01:08.9]} 23. Bxa6 {[%clk 0:00:26]} 23... bxa6
{[%clk 0:00:56.5]} 24. Qxa6+ {[%clk 0:00:26.9]} 24... Qb7 {[%clk 0:00:56.8]} 25.
Qc4+ {[%clk 0:00:24.4]} 25... Kb8 {[%clk 0:00:54.3]} 26. a3 {[%clk 0:00:16.5]}
26... Bxa3 {[%clk 0:00:46.9]} 27. b3 {[%clk 0:00:05.4]} 27... Rc8 {[%clk
0:00:44.5]} 28. Qd3 {[%clk 0:00:02.9]} 28... Rhd8 {[%clk 0:00:44.5]} 29. Rf7
{[%clk 0:00:01.6]} 29... Be8 {[%clk 0:00:43.5]} 30. Qxd8 {[%clk 0:00:01.6]}
30... Bxf7 {[%clk 0:00:39]} 31. Qa5 {[%clk 0:00:01]} 31... Bb4 {[%clk
0:00:34.6]} 32. Qxe5+ {[%clk 0:00:01.7]} 32... Qc7 {[%clk 0:00:17.3]} 33. Qb5+
{[%clk 0:00:01.8]} 33... Qb7 {[%clk 0:00:17.8]} 34. Qe5+ {[%clk 0:00:01.8]}
34... Ka8 {[%clk 0:00:10]} 35. Na4 {[%clk 0:00:01.8]} 35... Nc6 {[%clk
0:00:06.7]} 0-1

[Event "Early-Titled-Tuesday-Blitz-October-10-2023"]
[Site "Chess.com"]
[Date "2023.10.10"]
[Round "8"]
[White "LangesNasenhaar"]
[Black "YouShallNotPass001"]
[Result "1-0"]
[WhiteElo "2555"]
[BlackElo "2401"]
[TimeControl "180+1"]
[EndTime "9:27:21 PDT"]
[Termination "LangesNasenhaar won by resignation"]

1. d4 {[%clk 0:03:00.9]} 1... Nf6 {[%clk 0:02:59.3]} 2. Nc3 {[%clk 0:03:00.2]}
2... e6 {[%clk 0:03:00.2]} 3. Bf4 {[%clk 0:02:58.7]} 3... d6 {[%clk 0:02:48.8]}
4. e4 {[%clk 0:02:56.2]} 4... h6 {[%clk 0:02:49.3]} 5. Qd2 {[%clk 0:02:55.9]}
5... Nbd7 {[%clk 0:02:48.7]} 6. O-O-O {[%clk 0:02:55.6]} 6... c6 {[%clk
0:02:44.1]} 7. Nf3 {[%clk 0:02:46.3]} 7... b5 {[%clk 0:02:43.7]} 8. e5 {[%clk
0:02:41.3]} 8... b4 {[%clk 0:02:35.3]} 9. exf6 {[%clk 0:01:58.9]} 9... bxc3
{[%clk 0:02:31.8]} 10. Qxc3 {[%clk 0:01:58.6]} 10... Nxf6 {[%clk 0:02:29.4]} 11.
Qxc6+ {[%clk 0:01:54.6]} 11... Bd7 {[%clk 0:02:29.8]} 12. Qa6 {[%clk 0:01:48.6]}
12... Nd5 {[%clk 0:02:22.2]} 13. Bxd6 {[%clk 0:01:41.7]} 13... Bxd6 {[%clk
0:01:55.1]} 14. Qxd6 {[%clk 0:01:40.6]} 14... Qa5 {[%clk 0:01:55]} 15. a3 {[%clk
0:01:17.9]} 15... Rc8 {[%clk 0:01:53.5]} 16. Ne5 {[%clk 0:01:09.7]} 16... Ba4
{[%clk 0:01:53.1]} 17. Bd3 {[%clk 0:01:01.4]} 17... Nf4 {[%clk 0:00:37.1]} 18.
Be4 {[%clk 0:01:01.3]} 18... f6 {[%clk 0:00:17.2]} 19. Nc6 {[%clk 0:00:54.1]}
19... Bxc6 {[%clk 0:00:15.6]} 20. Bxc6+ {[%clk 0:00:51.6]} 20... Kf7 {[%clk
0:00:16.2]} 21. Bd7 {[%clk 0:00:42.2]} 21... Ne2+ {[%clk 0:00:16.1]} 22. Kb1
{[%clk 0:00:41.6]} 22... Nc3+ {[%clk 0:00:16.7]} 23. bxc3 {[%clk 0:00:39]} 23...
Rb8+ {[%clk 0:00:17.3]} 24. Kc1 {[%clk 0:00:35.3]} 24... Qxc3 {[%clk 0:00:17.6]}
25. Qxe6+ {[%clk 0:00:28.6]} 25... Kg6 {[%clk 0:00:18.1]} 26. Qe4+ {[%clk
0:00:19.6]} 26... Kf7 {[%clk 0:00:17.8]} 27. Rd3 {[%clk 0:00:16.6]} 27... Qa1+
{[%clk 0:00:17.6]} 28. Kd2 {[%clk 0:00:16.6]} 28... Qxh1 {[%clk 0:00:17]} 29.
Qd5+ {[%clk 0:00:16.1]} 29... Kf8 {[%clk 0:00:17.6]} 30. Qd6+ {[%clk 0:00:16.2]}
30... Kf7 {[%clk 0:00:17.9]} 31. Be6+ {[%clk 0:00:16.5]} 31... Kg6 {[%clk
0:00:18.1]} 32. Qg3+ {[%clk 0:00:16.1]} 32... Kh7 {[%clk 0:00:17.7]} 33. Bf5+
{[%clk 0:00:16.2]} 33... Kg8 {[%clk 0:00:17.5]} 34. Qxb8+ {[%clk 0:00:15.5]}
34... Kf7 {[%clk 0:00:18.1]} 35. Qxh8 {[%clk 0:00:14.8]} 35... Qxg2 {[%clk
0:00:18.5]} 36. Qc8 {[%clk 0:00:13.7]} 36... Qxf2+ {[%clk 0:00:17]} 37. Kc3
{[%clk 0:00:14]} 37... Qe1+ {[%clk 0:00:17.5]} 38. Kc4 {[%clk 0:00:13.8]} 38...
Qa5 {[%clk 0:00:16.3]} 39. Qe6+ {[%clk 0:00:13.5]} 39... Kf8 {[%clk 0:00:16.9]}
40. Qd6+ {[%clk 0:00:12.8]} 40... Kg8 {[%clk 0:00:17.1]} 41. Qc5 {[%clk
0:00:12.9]} 41... Qa4+ {[%clk 0:00:16.5]} 42. Kc3 {[%clk 0:00:12.6]} 42... a5
{[%clk 0:00:15.9]} 43. Bg6 {[%clk 0:00:12.2]} 43... Qd7 {[%clk 0:00:14.3]} 44.
Re3 {[%clk 0:00:11]} 1-0

[Event "Early-Titled-Tuesday-Blitz-October-10-2023"]
[Site "Chess.com"]
[Date "2023.10.10"]
[Round "8"]
[White "KejJaj"]
[Black "FMStan15"]
[Result "1/2-1/2"]
[WhiteElo "2161"]
[BlackElo "2109"]
[TimeControl "180+1"]
[EndTime "9:27:23 PDT"]
[Termination "Game drawn - insufficient material"]

1. d4 {[%clk 0:03:00.9]} 1... Nf6 {[%clk 0:02:47.8]} 2. Bf4 {[%clk 0:03:00.9]}
2... e6 {[%clk 0:02:43.6]} 3. e3 {[%clk 0:03:00.8]} 3... d5 {[%clk 0:02:44]} 4.
Nf3 {[%clk 0:02:59.3]} 4... Bd6 {[%clk 0:02:44.2]} 5. Nbd2 {[%clk 0:02:57.9]}
5... Bxf4 {[%clk 0:02:44]} 6. exf4 {[%clk 0:02:57.8]} 6... O-O {[%clk
0:02:44.1]} 7. Bd3 {[%clk 0:02:55.4]} 7... Qd6 {[%clk 0:02:43.9]} 8. g3 {[%clk
0:02:54.9]} 8... c5 {[%clk 0:02:41.9]} 9. c3 {[%clk 0:02:54]} 9... cxd4 {[%clk
0:02:41.2]} 10. Nxd4 {[%clk 0:02:48.6]} 10... Nc6 {[%clk 0:02:40.2]} 11. Nxc6
{[%clk 0:02:42.4]} 11... bxc6 {[%clk 0:02:39.7]} 12. Nf3 {[%clk 0:02:42.3]}
12... c5 {[%clk 0:02:37.6]} 13. O-O {[%clk 0:02:41.4]} 13... Ba6 {[%clk
0:02:34]} 14. Ne5 {[%clk 0:02:34.8]} 14... Bxd3 {[%clk 0:02:33.5]} 15. Qxd3
{[%clk 0:02:34.8]} 15... Ne4 {[%clk 0:02:28.3]} 16. f3 {[%clk 0:02:32.6]} 16...
Nf6 {[%clk 0:02:14.1]} 17. Rfd1 {[%clk 0:02:31]} 17... Qb6 {[%clk 0:02:09.9]}
18. b3 {[%clk 0:02:24.5]} 18... c4+ {[%clk 0:02:02.6]} 19. Qd4 {[%clk
0:02:25.1]} 19... Qxd4+ {[%clk 0:02:02.1]} 20. Rxd4 {[%clk 0:02:20.6]} 20...
cxb3 {[%clk 0:01:58.2]} 21. axb3 {[%clk 0:02:21.5]} 21... Rfc8 {[%clk
0:01:54.3]} 22. c4 {[%clk 0:02:19.2]} 22... dxc4 {[%clk 0:01:53.5]} 23. bxc4
{[%clk 0:02:18.3]} 23... a5 {[%clk 0:01:45.2]} 24. Ra4 {[%clk 0:02:13.5]} 24...
Kf8 {[%clk 0:01:38.4]} 25. Kf2 {[%clk 0:02:00.5]} 25... Ke7 {[%clk 0:01:38.1]}
26. Ke3 {[%clk 0:02:00.1]} 26... Ra6 {[%clk 0:01:29]} 27. Rd3 {[%clk 0:01:56.1]}
27... h5 {[%clk 0:01:05]} 28. Rda3 {[%clk 0:01:49.8]} 28... Rca8 {[%clk
0:00:58.6]} 29. h3 {[%clk 0:01:42]} 29... Nd7 {[%clk 0:00:56.2]} 30. Nxd7 {[%clk
0:01:33.7]} 30... Kxd7 {[%clk 0:00:55.8]} 31. Kd4 {[%clk 0:01:32.3]} 31... Kc6
{[%clk 0:00:54.2]} 32. g4 {[%clk 0:01:31.4]} 32... hxg4 {[%clk 0:00:50.6]} 33.
fxg4 {[%clk 0:01:31.5]} 33... f6 {[%clk 0:00:49.7]} 34. Re3 {[%clk 0:01:29.7]}
34... Rd8+ {[%clk 0:00:37.6]} 35. Kc3 {[%clk 0:01:28.4]} 35... Kc5 {[%clk
0:00:34.8]} 36. Rd3 {[%clk 0:01:22.8]} 36... Rxd3+ {[%clk 0:00:32.4]} 37. Kxd3
{[%clk 0:01:23.7]} 37... e5 {[%clk 0:00:30.1]} 38. fxe5 {[%clk 0:01:22.9]} 38...
fxe5 {[%clk 0:00:30.1]} 39. Ke4 {[%clk 0:01:23.2]} 39... Kd6 {[%clk 0:00:26.6]}
40. h4 {[%clk 0:01:21.9]} 40... Ke6 {[%clk 0:00:21.6]} 41. h5 {[%clk 0:01:22]}
41... Kd6 {[%clk 0:00:20.3]} 42. g5 {[%clk 0:01:18.6]} 42... Ra8 {[%clk
0:00:18.6]} 43. Kf5 {[%clk 0:01:10.6]} 43... Rh8 {[%clk 0:00:11.4]} 44. Kg6
{[%clk 0:01:10.3]} 44... e4 {[%clk 0:00:11.4]} 45. Rxa5 {[%clk 0:01:05]} 45...
e3 {[%clk 0:00:10.4]} 46. Ra2 {[%clk 0:01:04.2]} 46... Re8 {[%clk 0:00:07.1]}
47. Re2 {[%clk 0:01:04.4]} 47... Re7 {[%clk 0:00:07.3]} 48. h6 {[%clk 0:01:04]}
48... gxh6 {[%clk 0:00:07]} 49. gxh6 {[%clk 0:01:04.7]} 49... Kc5 {[%clk
0:00:06.9]} 50. h7 {[%clk 0:01:04]} 50... Re8 {[%clk 0:00:06.7]} 51. Kg7 {[%clk
0:01:03.8]} 51... Kxc4 {[%clk 0:00:07.1]} 52. h8=Q {[%clk 0:01:03.6]} 52... Rxh8
{[%clk 0:00:06.4]} 53. Kxh8 {[%clk 0:01:01.3]} 53... Kd3 {[%clk 0:00:06.4]} 54.
Ra2 {[%clk 0:00:52.8]} 54... e2 {[%clk 0:00:06.6]} 55. Ra3+ {[%clk 0:00:52.7]}
55... Kd2 {[%clk 0:00:07]} 56. Ra2+ {[%clk 0:00:52.5]} 56... Kd1 {[%clk
0:00:07.5]} 57. Ra1+ {[%clk 0:00:52.6]} 57... Kd2 {[%clk 0:00:07.9]} 58. Ra2+
{[%clk 0:00:51.2]} 58... Kd1 {[%clk 0:00:08.2]} 59. Ra1+ {[%clk 0:00:49.8]}
59... Kd2 {[%clk 0:00:08.5]} 60. Rh1 {[%clk 0:00:48]} 60... e1=Q {[%clk
0:00:08.4]} 61. Rxe1 {[%clk 0:00:48.1]} 61... Kxe1 {[%clk 0:00:08.8]} 1/2-1/2

[Event "Early-Titled-Tuesday-Blitz-October-10-2023"]
[Site "Chess.com"]
[Date "2023.10.10"]
[Round "8"]
[White "LaPiToB"]
[Black "RCone"]
[Result "1-0"]
[WhiteElo "2318"]
[BlackElo "2471"]
[TimeControl "180+1"]
[EndTime "9:27:25 PDT"]
[Termination "LaPiToB won on time"]

1. d4 {[%clk 0:03:00.9]} 1... d6 {[%clk 0:02:56.3]} 2. c4 {[%clk 0:03:00.9]}
2... Nf6 {[%clk 0:02:56.2]} 3. Nc3 {[%clk 0:03:00.9]} 3... g6 {[%clk 0:02:56.8]}
4. e4 {[%clk 0:03:01]} 4... Bg7 {[%clk 0:02:57.2]} 5. Be2 {[%clk 0:03:01.5]}
5... O-O {[%clk 0:02:56.2]} 6. Bg5 {[%clk 0:03:02]} 6... Na6 {[%clk 0:02:55.1]}
7. h4 {[%clk 0:02:58.9]} 7... e5 {[%clk 0:02:55.3]} 8. d5 {[%clk 0:02:58.1]}
8... h6 {[%clk 0:02:53]} 9. Be3 {[%clk 0:02:56]} 9... Nc5 {[%clk 0:02:53.1]} 10.
f3 {[%clk 0:02:55.3]} 10... a5 {[%clk 0:02:49.1]} 11. g4 {[%clk 0:02:48]} 11...
c6 {[%clk 0:02:36.1]} 12. Qd2 {[%clk 0:02:39.5]} 12... h5 {[%clk 0:02:27.8]} 13.
g5 {[%clk 0:02:24.9]} 13... Nfd7 {[%clk 0:02:13.6]} 14. dxc6 {[%clk 0:02:23]}
14... bxc6 {[%clk 0:02:14.4]} 15. Qxd6 {[%clk 0:02:22.3]} 15... Ne6 {[%clk
0:02:02.5]} 16. Rd1 {[%clk 0:02:12]} 16... Nd4 {[%clk 0:01:45]} 17. c5 {[%clk
0:01:37.8]} 17... Re8 {[%clk 0:01:37.8]} 18. Bc4 {[%clk 0:01:33.5]} 18... Qe7
{[%clk 0:01:07.3]} 19. Qxg6 {[%clk 0:01:21.5]} 19... Nxc5 {[%clk 0:01:02.7]} 20.
Qxh5 {[%clk 0:01:16.8]} 20... Nc2+ {[%clk 0:00:37.8]} 21. Kf2 {[%clk 0:01:04.4]}
21... Nxe3 {[%clk 0:00:37.3]} 22. Kxe3 {[%clk 0:01:04.7]} 22... Ne6 {[%clk
0:00:36.7]} 23. Bb3 {[%clk 0:00:42.6]} 23... Qc5+ {[%clk 0:00:32.7]} 24. Kd2
{[%clk 0:00:42.7]} 24... Ba6 {[%clk 0:00:33.2]} 25. Kc2 {[%clk 0:00:40.6]} 25...
a4 {[%clk 0:00:26.7]} 26. Bxe6 {[%clk 0:00:39.3]} 26... Rxe6 {[%clk 0:00:25.6]}
27. Rd7 {[%clk 0:00:34.5]} 27... Re7 {[%clk 0:00:17.7]} 28. Rxe7 {[%clk
0:00:32.3]} 28... Qxe7 {[%clk 0:00:18.6]} 29. g6 {[%clk 0:00:32.1]} 29... fxg6
{[%clk 0:00:16.1]} 30. Qxg6 {[%clk 0:00:32.4]} 30... Rd8 {[%clk 0:00:03.4]} 31.
Nh3 {[%clk 0:00:25]} 31... Bd3+ {[%clk 0:00:03.8]} 32. Kc1 {[%clk 0:00:23.2]}
32... a3 {[%clk 0:00:04.4]} 33. Qxc6 {[%clk 0:00:02.6]} 33... axb2+ {[%clk
0:00:05.3]} 34. Kxb2 {[%clk 0:00:02.7]} 34... Qb4+ {[%clk 0:00:03]} 35. Ka1
{[%clk 0:00:03.1]} 35... Rb8 {[%clk 0:00:02.9]} 36. Qe6+ {[%clk 0:00:01.7]}
36... Kh8 {[%clk 0:00:02.5]} 37. Qb3 {[%clk 0:00:01.6]} 1-0

[Event "Early-Titled-Tuesday-Blitz-October-10-2023"]
[Site "Chess.com"]
[Date "2023.10.10"]
[Round "8"]
[White "viktorskliarov"]
[Black "MartinMatthiesen"]
[Result "0-1"]
[WhiteElo "2636"]
[BlackElo "2499"]
[TimeControl "180+1"]
[EndTime "9:27:27 PDT"]
[Termination "MartinMatthiesen won by resignation"]

1. e4 {[%clk 0:03:00.9]} 1... e5 {[%clk 0:02:57.1]} 2. Nc3 {[%clk 0:03:01]} 2...
Nf6 {[%clk 0:02:56.4]} 3. Bc4 {[%clk 0:03:01.6]} 3... Nc6 {[%clk 0:02:49.3]} 4.
d3 {[%clk 0:03:01.9]} 4... Bb4 {[%clk 0:02:46.7]} 5. Bg5 {[%clk 0:02:59.5]} 5...
h6 {[%clk 0:02:45]} 6. Bxf6 {[%clk 0:02:59.6]} 6... Bxc3+ {[%clk 0:02:45.1]} 7.
bxc3 {[%clk 0:02:59.6]} 7... Qxf6 {[%clk 0:02:45.8]} 8. Ne2 {[%clk 0:02:58.9]}
8... d6 {[%clk 0:02:45.2]} 9. Bb5 {[%clk 0:02:58.6]} 9... Bd7 {[%clk 0:02:44.6]}
10. Bxc6 {[%clk 0:02:57.3]} 10... Bxc6 {[%clk 0:02:44.2]} 11. O-O {[%clk
0:02:58.2]} 11... g5 {[%clk 0:02:42.2]} 12. Ng3 {[%clk 0:02:50.4]} 12... O-O-O
{[%clk 0:02:39.8]} 13. Nf5 {[%clk 0:02:21.6]} 13... Bd7 {[%clk 0:02:36]} 14. Qf3
{[%clk 0:02:21.1]} 14... Bxf5 {[%clk 0:02:28.8]} 15. exf5 {[%clk 0:02:14.7]}
15... d5 {[%clk 0:02:26.8]} 16. Rfe1 {[%clk 0:02:05.5]} 16... Rhe8 {[%clk
0:02:24.1]} 17. Rab1 {[%clk 0:02:03]} 17... c6 {[%clk 0:02:15]} 18. g4 {[%clk
0:01:59.4]} 18... h5 {[%clk 0:02:06.6]} 19. h3 {[%clk 0:01:53.7]} 19... Rh8
{[%clk 0:02:01.5]} 20. Kf1 {[%clk 0:01:41.3]} 20... hxg4 {[%clk 0:01:57.8]} 21.
hxg4 {[%clk 0:01:42.2]} 21... Rh2 {[%clk 0:01:57.1]} 22. Qe3 {[%clk 0:01:21.7]}
22... d4 {[%clk 0:01:29.2]} 23. Qg3 {[%clk 0:00:52]} 23... Rh4 {[%clk
0:01:19.1]} 24. Rb4 {[%clk 0:00:28.4]} 24... Rh1+ {[%clk 0:01:12.6]} 25. Ke2
{[%clk 0:00:27.1]} 25... Rxe1+ {[%clk 0:01:12]} 26. Kxe1 {[%clk 0:00:27.4]}
26... dxc3 {[%clk 0:01:06.2]} 27. Re4 {[%clk 0:00:27]} 27... Rd5 {[%clk
0:01:04.7]} 28. Qe3 {[%clk 0:00:24.7]} 28... b6 {[%clk 0:01:01.1]} 29. Rc4
{[%clk 0:00:24.9]} 29... Qd6 {[%clk 0:00:55.4]} 30. Ke2 {[%clk 0:00:18.3]} 30...
Kb7 {[%clk 0:00:49.1]} 31. Qxg5 {[%clk 0:00:18]} 31... b5 {[%clk 0:00:44.1]} 32.
Re4 {[%clk 0:00:17.6]} 32... Qa3 {[%clk 0:00:39.4]} 33. Qg7 {[%clk 0:00:07.5]}
33... Qc1 {[%clk 0:00:34.8]} 34. Qxf7+ {[%clk 0:00:07.3]} 34... Kb6 {[%clk
0:00:34.8]} 35. Qe8 {[%clk 0:00:04.8]} 35... Qxc2+ {[%clk 0:00:34.9]} 36. Kf3
{[%clk 0:00:04.5]} 36... Qxd3+ {[%clk 0:00:35.1]} 37. Re3 {[%clk 0:00:04.9]}
37... Qd1+ {[%clk 0:00:34.6]} 38. Kg3 {[%clk 0:00:04.8]} 38... c2 {[%clk
0:00:31]} 39. Qb8+ {[%clk 0:00:04.7]} 39... Kc5 {[%clk 0:00:27.8]} 40. Qxa7+
{[%clk 0:00:04.5]} 40... Kc4 {[%clk 0:00:25.3]} 41. Re4+ {[%clk 0:00:03.9]}
41... Rd4 {[%clk 0:00:22.5]} 42. Rxe5 {[%clk 0:00:04.2]} 42... Qxg4+ {[%clk
0:00:21.1]} 43. Kh2 {[%clk 0:00:04.3]} 43... Qf4+ {[%clk 0:00:20.2]} 44. Kg2
{[%clk 0:00:04.7]} 44... Qxe5 {[%clk 0:00:20.5]} 0-1